[Event "Schack-SM 2023: Mastarklassen"]
[Site "Helsingborg Arena, Mellersta Stenbocksgatan 14, Helsingborg, Sweden"]
[Date "2023.07.03"]
[Round "3.5"]
[White "Troberg Eskola, Love"]
[Black "Frisk, Ellinor"]
[Result "0-1"]
[TimeControl "90 minutes for 40 moves + 30 minutes for the rest of games + 30 seconds per move from move one."]
[BlackTitle "WIM"]
[WhiteElo "2038"]
[BlackElo "2178"]

1. c4 {[%clk 01:30:58]} {[%emt 00:00:02]} c5 {[%clk 01:30:55]} {[%emt
00:00:05]} 2. Nf3 {[%clk 01:31:17]} {[%emt 00:00:11]} Nc6 {[%clk 01:31:17]}
{[%emt 00:00:09]} 3. Nc3 {[%clk 01:31:29]} {[%emt 00:00:17]} e5 {[%clk
01:31:15]} {[%emt 00:00:31]} 4. g3 {[%clk 01:31:09]} {[%emt 00:00:51]} g6
{[%clk 01:31:28]} {[%emt 00:00:17]} 5. Bg2 {[%clk 01:31:30]} {[%emt 00:00:08]}
d6 {[%clk 01:31:50]} {[%emt 00:00:09]} 6. a3 {[%clk 01:31:00]} {[%emt
00:01:01]} Bg7 {[%clk 01:28:21]} {[%emt 00:03:58]} 7. Rb1 {[%clk 01:30:04]}
{[%emt 00:01:26]} a5 {[%clk 01:28:18]} {[%emt 00:00:33]} 8. d3 {[%clk
01:28:19]} {[%emt 00:02:15]} Nge7 {[%clk 01:28:26]} {[%emt 00:00:21]} 9. O-O
{[%clk 01:25:03]} {[%emt 00:03:47]} O-O {[%clk 01:28:02]} {[%emt 00:00:53]} 10.
Ne1 {[%clk 01:21:43]} {[%emt 00:03:50]} Be6 {[%clk 01:28:24]} {[%emt 00:00:09]}
11. Nd5 {[%clk 01:13:03]} {[%emt 00:09:10]} Rb8 {[%clk 01:28:16]} {[%emt
00:00:38]} 12. Nxe7+ {[%clk 01:07:41]} {[%emt 00:05:52]} Nxe7 {[%clk 01:23:12]}
{[%emt 00:05:34]} 13. b4 {[%clk 01:05:30]} {[%emt 00:02:41]} axb4 {[%clk
01:11:04]} {[%emt 00:12:39]} 14. axb4 {[%clk 01:05:54]} {[%emt 00:00:05]} cxb4
{[%clk 01:07:33]} {[%emt 00:04:01]} 15. Rxb4 {[%clk 01:05:30]} {[%emt
00:00:53]} d5 {[%clk 01:07:22]} {[%emt 00:00:42]} 16. Ba3 {[%clk 00:50:16]}
{[%emt 00:15:44]} dxc4 {[%clk 00:51:33]} {[%emt 00:16:19]} 17. Rxb7 {[%clk
00:46:39]} {[%emt 00:04:08]} Rxb7 {[%clk 00:51:52]} {[%emt 00:00:11]} 18. Bxb7
{[%clk 00:47:01]} {[%emt 00:00:07]} Qc7 {[%clk 00:46:43]} {[%emt 00:05:39]} 19.
Bg2 {[%clk 00:40:01]} {[%emt 00:07:30]} c3 {[%clk 00:46:27]} {[%emt 00:00:46]}
20. Nc2 {[%clk 00:30:11]} {[%emt 00:10:19]} Rc8 {[%clk 00:46:48]} {[%emt
00:00:09]} 21. Qa1 {[%clk 00:26:09]} {[%emt 00:04:33]} Nf5 {[%clk 00:40:41]} 22.
e3 {[%clk 00:25:20]} {[%emt 00:07:56]} h5 {[%emt 00:02:31]} 23. Rc1 {[%clk
00:20:16]} {[%emt 00:03:38]} Bf8 {[%clk 00:35:07]} {[%emt 00:06:00]} 24. Bxf8
{[%clk 00:18:09]} {[%emt 00:02:36]} Kxf8 {[%clk 00:35:12]} {[%emt 00:00:25]} 25.
Nb4 {[%clk 00:16:03]} {[%emt 00:02:35]} Qc5 {[%clk 00:33:54]} {[%emt 00:01:48]}
26. Na6 {[%clk 00:13:52]} {[%emt 00:02:42]} Qb5 {[%clk 00:30:37]} {[%emt
00:03:47]} 27. Qa3+ {[%clk 00:13:28]} {[%emt 00:00:54]} Kg8 {[%clk 00:30:28]}
{[%emt 00:00:39]} 28. Nb4 {[%clk 00:13:06]} {[%emt 00:00:51]} Rb8 {[%clk
00:22:58]} {[%emt 00:08:02]} 29. Nd5 {[%clk 00:04:25]} {[%emt 00:09:10]} Bxd5
{[%clk 00:19:33]} {[%emt 00:03:54]} 30. Bxd5 {[%clk 00:04:47]} {[%emt
00:00:09]} Qxd5 {[%clk 00:19:54]} {[%emt 00:00:09]} 31. e4 {[%clk 00:05:04]}
{[%emt 00:00:13]} Qd6 {[%clk 00:13:00]} {[%emt 00:07:24]} 32. Qxc3 {[%clk
00:04:08]} {[%emt 00:01:25]} Nd4 {[%clk 00:13:13]} {[%emt 00:00:18]} 33. Qc5
{[%clk 00:03:50]} {[%emt 00:00:48]} Nf3+ {[%clk 00:11:06]} {[%emt 00:02:37]} 34.
Kg2 {[%clk 00:03:55]} {[%emt 00:00:25]} Ne1+ {[%clk 00:10:09]} {[%emt
00:01:27]} 35. Kf1 {[%clk 00:04:13]} {[%emt 00:00:11]} Qxc5 {[%clk 00:05:04]}
{[%emt 00:05:36]} 36. Rxc5 {[%clk 00:04:37]} {[%emt 00:00:06]} Nxd3 {[%clk
00:05:31]} {[%emt 00:00:03]} 37. Rd5 {[%clk 00:04:55]} {[%emt 00:00:12]} Nb4
{[%clk 00:04:12]} {[%emt 00:01:49]} 38. Rxe5 {[%clk 00:05:17]} {[%emt
00:00:08]} Nc6 {[%clk 00:03:46]} {[%emt 00:00:56]} 39. Rc5 {[%clk 00:05:37]}
{[%emt 00:00:09]} Nd4 {[%clk 00:03:59]} {[%emt 00:00:17]} 40. Kg2 {[%emt
00:01:31]} Kg7 {[%emt 00:00:46]} 41. Rd5 {[%emt 00:02:30]} Ne6 {[%emt
00:11:18]} 42. f4 {[%clk 00:23:56]} {[%emt 00:00:01]} Rb2+ {[%emt 00:01:12]} 43.
Kg1 {[%emt 00:00:05]} Re2 {[%clk 00:22:29]} {[%emt 00:09:26]} 44. e5 {[%clk
00:23:07]} {[%emt 00:01:41]} Kf8 {[%clk 00:20:58]} {[%emt 00:02:02]} 45. Ra5
{[%clk 00:22:33]} {[%emt 00:01:04]} Nd4 {[%clk 00:20:42]} {[%emt 00:00:46]} 46.
Ra8+ {[%clk 00:22:44]} {[%emt 00:00:19]} Kg7 {[%clk 00:18:15]} {[%emt
00:02:57]} 47. Ra3 {[%clk 00:21:52]} {[%emt 00:01:21]} Nf5 {[%clk 00:17:56]} 48.
Rf3 {[%clk 00:18:20]} {[%emt 00:04:51]} Ne3 {[%clk 00:15:57]} {[%emt 00:02:29]}
49. h3 {[%clk 00:17:17]} {[%emt 00:01:33]} Kf8 {[%clk 00:15:37]} {[%emt
00:00:50]} 50. Rf2 {[%clk 00:16:05]} {[%emt 00:01:42]} Rxf2 {[%clk 00:12:45]}
{[%emt 00:03:22]} 51. Kxf2 {[%clk 00:16:28]} {[%emt 00:00:08]} Nd5 {[%clk
00:12:39]} {[%emt 00:00:35]} 52. Kf3 {[%clk 00:16:42]} {[%emt 00:00:15]} Ke7
{[%clk 00:12:36]} {[%emt 00:00:34]} 53. g4 {[%clk 00:13:59]} {[%emt 00:03:13]}
hxg4+ {[%clk 00:13:00]} {[%emt 00:00:07]} 54. hxg4 {[%clk 00:14:22]} {[%emt
00:00:06]} Ke6 {[%clk 00:13:25]} {[%emt 00:00:06]} 55. Ke4 {[%clk 00:14:33]}
{[%emt 00:00:19]} Nxf4 {[%clk 00:09:01]} {[%emt 00:04:54]} 56. Kxf4 {[%clk
00:14:44]} {[%emt 00:00:19]} Kd5 {[%clk 00:09:26]} {[%emt 00:00:04]} 57. Kf3
{[%clk 00:08:31]} {[%emt 00:06:43]} Kxe5 {[%clk 00:09:40]} {[%emt 00:00:16]} 58.
Ke3 {[%clk 00:08:52]} {[%emt 00:00:09]} g5 {[%clk 00:09:45]} {[%emt 00:00:25]}
59. Kf3 {[%clk 00:09:08]} {[%emt 00:00:15]} Kd4 {[%clk 00:10:10]} {[%emt
00:00:04]} 0-1

[Event "Schack-SM 2023: Mastarklassen"]
[Site "Helsingborg Arena, Mellersta Stenbocksgatan 14, Helsingborg, Sweden"]
[Date "2023.07.03"]
[Round "3.6"]
[White "Muntean, Victor"]
[Black "Jogstad, Daniel"]
[Result "0-1"]
[TimeControl "90 minutes for 40 moves + 30 minutes for the rest of games + 30 seconds per move from move one."]
[BlackTitle "CM"]
[WhiteElo "2097"]
[BlackElo "2131"]

1. e4 {[%clk 01:30:58]} c5 {[%clk 01:30:55]} {[%emt 00:00:06]} 2. b3 {[%clk
01:31:22]} {[%emt 00:00:06]} Nc6 {[%clk 01:25:49]} {[%emt 00:05:36]} 3. Bb2
{[%clk 01:30:30]} {[%emt 00:01:22]} d6 {[%clk 01:21:07]} {[%emt 00:05:12]} 4.
f4 {[%clk 01:29:20]} {[%emt 00:01:40]} Nf6 {[%clk 01:16:44]} {[%emt 00:04:52]}
5. Nc3 {[%clk 01:25:52]} {[%emt 00:03:58]} e5 {[%clk 01:14:32]} {[%emt
00:02:42]} 6. fxe5 {[%clk 01:18:54]} {[%emt 00:07:29]} dxe5 {[%clk 01:14:37]}
{[%emt 00:00:24]} 7. Nf3 {[%clk 01:17:22]} {[%emt 00:02:02]} Bg4 {[%clk
01:14:17]} {[%emt 00:00:50]} 8. Bc4 {[%clk 01:16:12]} {[%emt 00:01:40]} Be7
{[%clk 01:11:15]} {[%emt 00:03:32]} 9. Bd5 {[%clk 01:07:09]} {[%emt 00:09:33]}
O-O {[%clk 01:05:15]} {[%emt 00:06:30]} 10. Bxc6 {[%clk 01:04:33]} {[%emt
00:03:06]} bxc6 {[%clk 01:05:40]} {[%emt 00:00:06]} 11. h3 {[%clk 01:01:46]}
{[%emt 00:03:16]} Bxf3 {[%clk 00:57:06]} {[%emt 00:09:04]} 12. Qxf3 {[%clk
01:02:02]} {[%emt 00:00:13]} c4 {[%clk 00:57:23]} {[%emt 00:00:14]} 13. Qe2
{[%clk 00:58:10]} {[%emt 00:04:23]} cxb3 {[%clk 00:49:24]} {[%emt 00:08:29]} 14.
axb3 {[%clk 00:58:04]} {[%emt 00:00:35]} Bc5 {[%clk 00:49:32]} {[%emt
00:00:23]} 15. Ba3 {[%clk 00:44:37]} {[%emt 00:13:57]} Nd7 {[%clk 00:44:18]}
{[%emt 00:05:44]} 16. Bxc5 {[%clk 00:36:26]} {[%emt 00:08:41]} Nxc5 {[%clk
00:44:44]} {[%emt 00:00:04]} 17. Qf2 {[%clk 00:35:44]} {[%emt 00:01:11]} Ne6
{[%clk 00:34:30]} {[%emt 00:10:45]} 18. Ne2 {[%clk 00:33:47]} {[%emt 00:02:27]}
Qg5 {[%clk 00:30:00]} {[%emt 00:05:00]} 19. Qg3 {[%clk 00:26:06]} {[%emt
00:08:11]} Qh5 {[%clk 00:17:33]} {[%emt 00:12:56]} 20. Rf1 {[%clk 00:23:09]}
{[%emt 00:03:27]} f6 {[%clk 00:16:45]} {[%emt 00:01:19]} 21. Ra6 {[%clk
00:22:13]} {[%emt 00:01:25]} Rfd8 {[%clk 00:10:04]} {[%emt 00:07:10]} 22. d3
{[%clk 00:14:55]} {[%emt 00:07:49]} Qf7 {[%clk 00:09:16]} {[%emt 00:01:17]} 23.
Rxc6 {[%clk 00:14:32]} {[%emt 00:00:54]} Rac8 {[%clk 00:08:03]} {[%emt
00:01:43]} 24. Rc4 {[%clk 00:11:38]} {[%emt 00:03:24]} Rxc4 {[%clk 00:07:43]}
{[%emt 00:00:50]} 25. bxc4 {[%clk 00:12:02]} {[%emt 00:00:06]} Rb8 {[%clk
00:05:18]} {[%emt 00:02:55]} 26. Qe3 {[%clk 00:07:41]} {[%emt 00:04:52]} Rb2
{[%clk 00:04:58]} {[%emt 00:00:49]} 27. Qd2 {[%clk 00:07:27]} {[%emt 00:00:44]}
Qb7 {[%clk 00:05:08]} {[%emt 00:00:21]} 28. Kf2 {[%clk 00:05:55]} {[%emt
00:02:02]} Qb6+ {[%clk 00:05:13]} {[%emt 00:00:25]} 29. Kg3 {[%clk 00:06:13]}
{[%emt 00:00:11]} h5 {[%clk 00:05:17]} {[%emt 00:00:27]} 30. Kh2 {[%clk
00:05:52]} {[%emt 00:00:51]} h4 {[%clk 00:05:10]} {[%emt 00:00:38]} 31. Nc3
{[%clk 00:03:10]} {[%emt 00:03:12]} Qb4 {[%clk 00:04:51]} {[%emt 00:00:48]} 32.
Rf2 {[%clk 00:02:51]} {[%emt 00:00:49]} Nd4 {[%clk 00:04:21]} {[%emt 00:01:00]}
33. Nd5 {[%clk 00:01:48]} {[%emt 00:01:34]} Qxd2 {[%clk 00:04:24]} {[%emt
00:00:26]} 34. Rxd2 {[%clk 00:02:17]} {[%emt 00:00:03]} a5 {[%clk 00:03:57]}
{[%emt 00:00:56]} 35. Ne3 {[%clk 00:01:33]} {[%emt 00:01:14]} a4 {[%clk
00:03:58]} {[%emt 00:00:28]} 36. Rd1 {[%clk 00:01:59]} {[%emt 00:00:04]} a3
{[%clk 00:03:58]} {[%emt 00:00:31]} 37. Ra1 {[%clk 00:01:51]} {[%emt 00:00:37]}
a2 {[%clk 00:04:15]} {[%emt 00:00:14]} 38. c5 {[%clk 00:01:13]} {[%emt
00:01:08]} Kf7 {[%clk 00:02:39]} {[%emt 00:02:06]} 39. c6 {[%clk 00:01:02]}
{[%emt 00:00:40]} Ke6 {[%clk 00:02:03]} {[%emt 00:01:07]} 40. Nc4 {[%clk
00:00:54]} {[%emt 00:00:38]} Nxc2 {[%clk 00:02:01]} {[%emt 00:00:32]} 41. Rc1
{[%clk 00:27:50]} {[%emt 00:03:34]} Rb8 {[%clk 00:19:27]} {[%emt 00:13:04]} 42.
Nb6 {[%clk 00:27:12]} {[%emt 00:01:08]} a1=Q {[%clk 00:13:24]} {[%emt
00:06:32]} 43. Rxa1 {[%clk 00:26:48]} {[%emt 00:00:54]} Nxa1 {[%clk 00:12:36]}
{[%emt 00:01:18]} 44. c7 {[%clk 00:27:12]} {[%emt 00:00:07]} Rf8 {[%clk
00:09:30]} {[%emt 00:03:36]} 45. c8=Q+ {[%clk 00:26:49]} {[%emt 00:00:52]} Rxc8
{[%clk 00:09:56]} {[%emt 00:00:05]} 46. Nxc8 {[%clk 00:27:14]} {[%emt
00:00:05]} Nc2 {[%clk 00:09:28]} {[%emt 00:00:58]} 47. Kg1 {[%clk 00:27:10]}
{[%emt 00:00:32]} Nb4 {[%clk 00:09:18]} {[%emt 00:00:41]} 48. Kf2 {[%clk
00:27:28]} {[%emt 00:00:12]} Nxd3+ {[%clk 00:09:39]} {[%emt 00:00:10]} 49. Kf3
{[%clk 00:27:33]} {[%emt 00:00:24]} Nc5 {[%clk 00:06:40]} {[%emt 00:03:30]} 50.
Nb6 {[%clk 00:27:04]} {[%emt 00:00:58]} g6 {[%clk 00:06:50]} {[%emt 00:00:20]}
51. Nc4 {[%clk 00:26:10]} {[%emt 00:01:24]} f5 {[%clk 00:07:07]} {[%emt
00:00:13]} 52. exf5+ {[%clk 00:25:11]} {[%emt 00:01:29]} gxf5 {[%clk 00:07:19]}
{[%emt 00:00:18]} 53. Ke3 {[%clk 00:25:04]} {[%emt 00:00:36]} Ne4 {[%clk
00:07:13]} {[%emt 00:00:37]} 54. Kf3 {[%clk 00:24:39]} {[%emt 00:00:55]} Ng5+
{[%clk 00:07:33]} {[%emt 00:00:10]} 55. Ke2 {[%clk 00:24:06]} {[%emt 00:01:02]}
f4 {[%clk 00:07:32]} {[%emt 00:00:32]} 56. Kd3 {[%clk 00:22:38]} {[%emt
00:01:58]} Nf7 {[%clk 00:03:29]} {[%emt 00:04:32]} 57. Nd2 {[%clk 00:20:00]}
{[%emt 00:03:09]} Nd6 {[%clk 00:03:49]} {[%emt 00:00:11]} 58. Kc3 {[%clk
00:20:11]} {[%emt 00:00:18]} Kd5 {[%clk 00:01:34]} {[%emt 00:02:46]} 59. Nf3
{[%clk 00:19:35]} {[%emt 00:01:06]} Nf5 {[%clk 00:02:01]} {[%emt 00:00:03]} 60.
Kd2 {[%clk 00:18:39]} {[%emt 00:01:26]} e4 {[%clk 00:02:24]} {[%emt 00:00:06]}
61. Ne1 {[%clk 00:19:05]} {[%emt 00:00:04]} Nd4 {[%clk 00:02:03]} {[%emt
00:00:51]} 62. Kd1 {[%clk 00:18:31]} {[%emt 00:01:03]} Kc5 {[%clk 00:01:49]}
{[%emt 00:00:45]} 63. Kd2 {[%clk 00:18:45]} {[%emt 00:00:16]} Kc4 {[%clk
00:02:10]} {[%emt 00:00:09]} 64. Kd1 {[%clk 00:18:18]} {[%emt 00:00:57]} Kc3
{[%clk 00:02:35]} {[%emt 00:00:05]} 65. Kc1 {[%clk 00:18:41]} {[%emt 00:00:08]}
f3 {[%clk 00:02:47]} {[%emt 00:00:18]} 0-1

[Event "Schack-SM 2023: Mastarklassen"]
[Site "Helsingborg Arena, Mellersta Stenbocksgatan 14, Helsingborg, Sweden"]
[Date "2023.07.03"]
[Round "3.7"]
[White "Carlstrom, Niklas"]
[Black "Joensson, Jacob"]
[Result "0-1"]
[TimeControl "90 minutes for 40 moves + 30 minutes for the rest of games + 30 seconds per move from move one."]
[WhiteElo "2125"]
[BlackElo "2039"]

1. e4 {[%clk 01:30:47]} {[%emt 00:00:12]} e5 {[%clk 01:30:54]} {[%emt
00:00:07]} 2. Nc3 {[%clk 01:31:07]} {[%emt 00:00:09]} Nf6 {[%clk 01:30:08]}
{[%emt 00:01:18]} 3. Bc4 {[%clk 01:31:23]} {[%emt 00:00:13]} Bc5 {[%clk
01:29:37]} {[%emt 00:01:01]} 4. d3 {[%clk 01:30:48]} {[%emt 00:01:04]} d6
{[%clk 01:28:49]} {[%emt 00:01:20]} 5. Na4 {[%clk 01:26:32]} {[%emt 00:04:46]}
Bb6 {[%clk 01:26:58]} {[%emt 00:02:21]} 6. Nxb6 {[%clk 01:24:33]} {[%emt
00:02:28]} axb6 {[%clk 01:27:21]} {[%emt 00:00:09]} 7. f4 {[%clk 01:24:31]}
{[%emt 00:00:30]} Nc6 {[%clk 01:21:27]} {[%emt 00:06:24]} 8. Nf3 {[%clk
01:18:20]} {[%emt 00:06:41]} Bg4 {[%clk 01:19:16]} {[%emt 00:02:42]} 9. a3
{[%clk 01:16:51]} {[%emt 00:01:58]} O-O {[%clk 01:16:48]} {[%emt 00:02:58]} 10.
h3 {[%clk 01:12:44]} {[%emt 00:04:36]} Bxf3 {[%clk 01:16:30]} {[%emt 00:00:49]}
11. Qxf3 {[%clk 01:13:01]} {[%emt 00:00:12]} b5 {[%clk 01:16:45]} {[%emt
00:00:17]} 12. Ba2 {[%clk 01:12:10]} {[%emt 00:01:19]} b4 {[%clk 01:06:15]}
{[%emt 00:11:02]} 13. O-O {[%clk 01:11:28]} {[%emt 00:01:10]} bxa3 {[%clk
01:04:23]} {[%emt 00:02:24]} 14. bxa3 {[%clk 01:11:43]} {[%emt 00:00:14]} Nd4
{[%clk 00:57:04]} {[%emt 00:07:50]} 15. Qf2 {[%clk 01:11:39]} {[%emt 00:00:31]}
Qd7 {[%clk 00:55:59]} {[%emt 00:01:37]} 16. Kh1 {[%clk 00:55:32]} {[%emt
00:16:37]} Kh8 {[%clk 00:40:17]} {[%emt 00:16:13]} 17. fxe5 {[%clk 00:37:13]}
{[%emt 00:18:48]} dxe5 {[%clk 00:40:34]} {[%emt 00:00:12]} 18. Qh4 {[%clk
00:36:34]} {[%emt 00:01:08]} Ng8 {[%clk 00:37:29]} {[%emt 00:03:36]} 19. Rf2
{[%clk 00:25:59]} {[%emt 00:11:05]} f6 {[%clk 00:32:38]} {[%emt 00:05:23]} 20.
Bb2 {[%clk 00:23:50]} {[%emt 00:02:37]} Ne7 {[%clk 00:31:28]} {[%emt 00:01:41]}
21. c3 {[%clk 00:16:44]} {[%emt 00:07:35]} Nb5 {[%clk 00:29:36]} {[%emt
00:02:22]} 22. d4 {[%clk 00:16:45]} {[%emt 00:00:29]} exd4 {[%clk 00:27:25]}
{[%emt 00:02:44]} 23. cxd4 {[%clk 00:16:58]} {[%emt 00:00:15]} Nxd4 {[%clk
00:26:31]} {[%emt 00:01:25]} 24. Raf1 {[%clk 00:16:38]} {[%emt 00:00:49]} Ng6
{[%clk 00:26:07]} {[%emt 00:00:54]} 25. Qh5 {[%clk 00:15:43]} {[%emt 00:01:24]}
b6 {[%clk 00:19:06]} {[%emt 00:07:32]} 26. e5 {[%clk 00:09:32]} {[%emt
00:06:40]} fxe5 {[%clk 00:18:39]} {[%emt 00:00:58]} 27. Rxf8+ {[%clk 00:09:38]}
{[%emt 00:00:24]} Rxf8 {[%clk 00:19:02]} {[%emt 00:00:07]} 28. Rxf8+ {[%clk
00:09:51]} {[%emt 00:00:16]} Nxf8 {[%clk 00:19:26]} {[%emt 00:00:07]} 29. Qxe5
{[%clk 00:10:07]} {[%emt 00:00:13]} c5 {[%clk 00:19:39]} {[%emt 00:00:18]} 30.
Qb8 {[%clk 00:09:50]} {[%emt 00:00:46]} Qf5 {[%clk 00:19:00]} {[%emt 00:01:10]}
31. Qxb6 {[%clk 00:07:42]} {[%emt 00:02:38]} Ne2 {[%clk 00:18:49]} {[%emt
00:00:41]} 32. Bxg7+ {[%clk 00:01:32]} {[%emt 00:06:39]} Kxg7 {[%clk 00:19:11]}
{[%emt 00:00:09]} 33. Qb2+ {[%clk 00:01:47]} {[%emt 00:00:15]} Nd4 {[%clk
00:19:35]} {[%emt 00:00:06]} 34. a4 {[%clk 00:01:59]} {[%emt 00:00:18]} Nd7
{[%clk 00:15:13]} {[%emt 00:04:53]} 35. a5 {[%clk 00:02:03]} {[%emt 00:00:25]}
Kf8 {[%clk 00:11:38]} {[%emt 00:04:05]} 36. Qc1 {[%clk 00:01:30]} {[%emt
00:01:02]} Ke7 {[%clk 00:09:03]} {[%emt 00:03:06]} 37. a6 {[%clk 00:01:32]}
{[%emt 00:00:27]} Nc6 {[%clk 00:03:48]} {[%emt 00:05:47]} 38. Qb2 {[%clk
00:01:02]} {[%emt 00:01:00]} Qf1+ {[%clk 00:01:41]} {[%emt 00:02:36]} 39. Kh2
{[%clk 00:01:25]} {[%emt 00:00:07]} Qxa6 {[%clk 00:02:04]} {[%emt 00:00:08]} 40.
Qg7+ {[%clk 00:01:33]} {[%emt 00:00:20]} Kd8 {[%clk 00:01:40]} {[%emt
00:00:55]} 41. Be6 {[%clk 00:29:58]} {[%emt 00:02:04]} Nce5 {[%clk 00:28:37]}
{[%emt 00:03:34]} 42. Bxd7 {[%clk 00:19:28]} {[%emt 00:10:59]} Nxd7 {[%clk
00:28:57]} {[%emt 00:00:12]} 43. Qxh7 {[%clk 00:19:48]} {[%emt 00:00:08]} c4
{[%clk 00:28:46]} {[%emt 00:00:42]} 44. Qh8+ {[%clk 00:17:42]} {[%emt
00:02:36]} Kc7 {[%clk 00:28:36]} {[%emt 00:00:40]} 45. Qc3 {[%clk 00:16:34]}
{[%emt 00:01:38]} Qd6+ {[%clk 00:27:18]} {[%emt 00:01:49]} 46. Kg1 {[%clk
00:16:36]} {[%emt 00:00:26]} Ne5 {[%clk 00:25:38]} {[%emt 00:02:11]} 47. h4
{[%clk 00:15:37]} {[%emt 00:01:28]} Kc6 {[%clk 00:24:26]} {[%emt 00:01:42]} 48.
Kf2 {[%clk 00:14:47]} {[%emt 00:01:19]} Ng4+ {[%clk 00:22:05]} {[%emt
00:02:53]} 49. Kf3 {[%clk 00:10:03]} {[%emt 00:05:13]} Qf6+ {[%clk 00:21:52]}
{[%emt 00:00:43]} 50. Qxf6+ {[%clk 00:10:21]} {[%emt 00:00:11]} Nxf6 {[%clk
00:22:18]} {[%emt 00:00:05]} 51. g4 {[%clk 00:10:19]} {[%emt 00:00:31]} Nxg4
{[%clk 00:22:38]} {[%emt 00:00:11]} 0-1